[Event "55th Ladies GM 2024"]
[Site "Belgrade9"]
[Date "2024.03.03"]
[Round "2.1"]
[White "Pogorelskikh, Sofia"]
[Black "Xu, Yuanyuan"]
[Result "1/2-1/2"]
[ECO "B19"]
[WhiteElo "2214"]
[BlackElo "2288"]
[Annotator "TA"]
[PlyCount "116"]
[EventDate "2024.03.02"]
[EventType "tourn"]
[EventCountry "SRB"]
[SourceTitle "playchess.com"]
[Source "ChessBase"]
[SourceQuality "1"]
[TimeControl "40/5400+30:1800+30"]

{[%evp 23,116,0,9,0,0,0,13,0,76,92,95,0,0,0,0,0,0,-10,-10,-53,-49,-37,-31,-72,-20,-12,0,-2,-8,-23,-10,-14,-18,-11,-8,-50,3,3,6,0,0,4,2,6,9,0,17,31,26,0,14,17,27,-100,-98,-96,0,0,0,0,0,0,0,0,0,0,0,0,0,0,0,0,0,-8,-13,-10,0,0,0,0,0,0,0,0,0,0,0,0,0,0,0,0,0,0,0]} 1. e4 {[%emt 0:00:07]} c6 {[%emt 0:00:02]} 2. d4 {[%emt 0:00:14]} d5 {[%emt 0:00:02]} 3. Nc3 {[%emt 0:00:18]} dxe4 {[%emt 0:00:07]} 4. Nxe4 {[%emt 0:00:08]} Bf5 {[%emt 0:00:08]} 5. Ng3 {[%emt 0:00:16]} Bg6 {[%emt 0:00:02]} 6. h4 {[%emt 0:00:34]} h6 {[%emt 0:00:02]} 7. Nf3 {[%emt 0:00:31]} e6 {[%emt 0:00:13]} 8. h5 {[%emt 0:00:20]} Bh7 {[%emt 0:00:03]} 9. Bd3 {[%emt 0:00:26]} Bxd3 {[%emt 0:00:04]} 10. Qxd3 {[%emt 0:00:11]} Nf6 {[%emt 0:00:10]} 11. Bd2 {[%emt 0:00:38]} Be7 {[%emt 0:01:08]} 12. O-O-O {[%emt 0:01:03]} O-O {[%emt 0:01:07]} 13. Kb1 {[%emt 0:06:03]} c5 {[%emt 0:00:31]} 14. Ne4 {[%emt 0:04:17]} cxd4 {[%emt 0:19:11]} 15. Nxd4 {[%emt 0:27:42][%cal Od2h6]} Nbd7 {[%emt 0:00:48] [#]} (15... Qb6 $11) 16. Nxf6+ $1 $16 {[%emt 0:06:54]} Bxf6 {[%emt 0:04:55] [#]} 17. Bb4 {[%emt 0:08:17] Dodges Nc5. White has more active pieces.} ({White should play} 17. Nb3 $1 $16) 17... Re8 $1 $11 {[%emt 0:08:10]} 18. Nb3 {[%emt 0:11:54][%cal Bd4b3,Bb3a5,Ba5c6,Bc6b4,Bb4c2,Bc2e3,Be3g4][%mdl 32]} Nb6 {[%emt 0:11:00]} 19. Qxd8 {[%emt 0:02:37]} Raxd8 {[%emt 0:01:21]} 20. Na5 {[%emt 0:28:00] Repels Nc4} Nd5 {[%emt 0:05:05]} 21. Ba3 {[%emt 0:00:00][%cal Oc2c4]} b5 {[%emt 0:05:36] Threatens to win with ...b4.} 22. c3 {[%emt 0:00:00]} Rd7 {[%emt 0:04:09]} (22... Bxc3 $5 23. Rxd5 Bxa5 24. Rxb5 Bb6 $11) 23. Nc6 {[%emt 0:00:00]} Rc8 {[%emt 0:05:33]} (23... a5 $17 {aiming for ...Ra8.} 24. Nxa5 Ra7) 24. Nb4 {[%emt 0:00:00]} Nb6 {[%emt 0:01:41]} 25. Rxd7 {[%emt 0:00:00]} Nxd7 {[%emt 0:00:02]} 26. Nc2 {[%emt 0:00:00]} Nb6 {[%emt 0:02:12]} 27. Bd6 {[%emt 0:00:00]} Nc4 {[%emt 0:04:33]} 28. Bf4 {[%emt 0:00:00]} Rd8 {[%emt 0:00:03]} 29. Ne3 {[%emt 0:01:06]} Nd2+ {[%emt 0:09:57]} (29... e5 $15 30. Nxc4 exf4) 30. Kc2 {[%emt 0:00:06]} Ne4 {[%emt 0:02:55]} 31. Ng4 {[%emt 0:00:52]} Bg5 {[%emt 0:01:48]} 32. Bxg5 {[%emt 0:00:31]} hxg5 {[%emt 0:00:04][%mdl 4096] Endgame. KRN-KRN} 33. Re1 {[%emt 0:02:01]} (33. Rd1 Rxd1 34. Kxd1 f5 $17) 33... f5 {[%emt 0:00:24]} (33... Rd2+ 34. Kc1 f5 (34... Nxf2 $2 35. Kxd2 Nxg4 36. a4 $18) 35. Rxe4 $18) 34. Re2 {[%emt 0:01:21]} Rd6 {[%emt 0:02:00]} 35. Ne5 {[%emt 0:00:52]} Kf8 {[%emt 0:05:47]} 36. Nf3 {[%emt 0:00:31]} a6 {[%emt 0:00:57]} 37. Nd4 {[%emt 0:00:18]} Kf7 {[%emt 0:00:11]} 38. a3 {[%emt 0:00:48]} (38. g4 $11 {remains equal.}) 38... g4 $17 {[%emt 0:01:31]} 39. f3 {[%emt 0:00:26]} Ng3 {[%emt 0:00:30]} (39... gxf3 $17 40. gxf3 Ng3) 40. Rf2 $11 {[%emt 0:00:35] The position is equal.} gxf3 {[%emt 0:03:08]} ({Much worse is} 40... Nxh5 $6 41. fxg4 Ng3 42. Rf3 $16 (42. gxf5 exf5 43. Nxf5 Rf6 $16)) 41. Rxf3 {[%emt 0:05:20]} Nxh5 {[%emt 0:00:21]} 42. g4 {[%emt 0:01:11]} Nf6 {[%emt 0:00:09]} 43. gxf5 {[%emt 0:00:38]} exf5 {[%emt 0:11:03]} 44. Nxf5 {[%emt 0:01:07]} Rd7 {[%emt 0:01:49]} 45. a4 {[%emt 0:09:56]} bxa4 {[%emt 0:10:04]} 46. Rf4 {[%emt 0:01:49]} Rd5 {[%emt 0:00:56]} 47. Ne3 {[%emt 0:04:10]} Ra5 {[%emt 0:01:18]} 48. Nc4 {[%emt 0:00:50]} Rh5 {[%emt 0:02:44]} 49. Nd2 {[%emt 0:01:42]} Ra5 {[%emt 0:02:31]} 50. Nc4 {[%emt 0:00:26]} Rg5 {[%emt 0:02:55]} 51. Ne3 {[%emt 0:00:57]} Rg3 {[%emt 0:00:37]} 52. Kd2 {[%emt 0:01:06]} a3 {[%emt 0:01:58]} 53. bxa3 {[%emt 0:00:14]} Ke6 {[%emt 0:01:17][%cal Og3e3] Hoping for ...Rxe3!} 54. Ra4 {[%emt 0:04:34]} Ke5 {[%emt 0:00:02] And now ...Ne4+ would win.} 55. Nc4+ {[%emt 0:01:17]} Kd5 {[%emt 0:00:41]} 56. Ne3+ {[%emt 0:00:15]} Ke5 {[%emt 0:00:35] ...Ne4+ would now be deadly.} 57. Nc4+ {[%emt 0:00:16]} Kd5 {[%emt 0:00:34] White must now prevent ...Ne4+.} 58. Ne3+ {[%emt 0:00:10]} Ke5 {[%emt 0:02:46] Weighted Error Value: White=0.13 (very precise) /Black=0.12 (very precise) .  Mistake:       	White=2     	Black=4      Inaccurate:     	White=4     	---        OK:         	White=23    	Black=19     Best:        	White=2     	Black=2      Strong:       	White=1     	Black=1} 1/2-1/2

[Event "55th Ladies GM 2024"]
[Site "Belgrade9"]
[Date "2024.03.03"]
[Round "2.2"]
[White "Kubicka, Anna"]
[Black "Lu, Miaoyi"]
[Result "1/2-1/2"]
[ECO "B45"]
[WhiteElo "2278"]
[BlackElo "2392"]
[Annotator "TA"]
[PlyCount "147"]
[EventDate "2024.03.02"]
[EventType "tourn"]
[EventCountry "SRB"]
[SourceTitle "playchess.com"]
[Source "ChessBase"]
[SourceQuality "1"]
[TimeControl "40/5400+30:1800+30"]

{[%evp 23,147,22,41,17,31,15,27,-18,-20,-21,-10,-20,20,14,130,114,128,120,198,199,207,193,205,191,195,178,225,193,181,197,281,282,292,291,277,277,332,232,193,130,141,77,79,41,75,37,37,37,66,37,37,37,37,37,37,37,37,37,354,30,37,37,45,45,59,66,73,45,45,30,1653,1297,29949,11180,29961,29960,29958,29965,29966,29966,29968,29969,29969,29970,29970,29971,29972,29973,29973,29974,29973,36,36,0,0,0,0,0,0,0,29979,0,0,0,29980,0,0,0,0,0,0,0,0,0,0,0,0,0,0,0,0,0,0,0,0,0]} 1. e4 {[%emt 0:00:06]} c5 {[%emt 0:00:02]} 2. Nf3 {[%emt 0:00:11][%cal Bg1f3,Bf3d4,Bd4b5,Bb5c3,Bc3e2][%mdl 32]} e6 {[%emt 0:00:04]} 3. d4 {[%emt 0:00:14]} cxd4 {[%emt 0:00:04]} 4. Nxd4 {[%emt 0:00:06]} Nf6 {[%emt 0:00:06]} 5. Nc3 {[%emt 0:00:11]} Nc6 {[%emt 0:00:03]} 6. Ndb5 {[%emt 0:00:36]} Bb4 {[%emt 0:00:04]} 7. a3 {[%emt 0:00:07]} Bxc3+ {[%emt 0:00:04]} 8. Nxc3 {[%emt 0:00:08]} d5 {[%emt 0:00:02]} 9. exd5 {[%emt 0:00:09]} exd5 {[%emt 0:00:04]} 10. Bd3 {[%emt 0:00:08]} O-O {[%emt 0:00:05]} 11. O-O {[%emt 0:00:14]} d4 {[%emt 0:00:04]} 12. Ne2 {[%emt 0:00:32]} Bg4 {[%emt 0:00:09]} 13. h3 {[%emt 0:00:21]} Bh5 {[%emt 0:00:18]} 14. f4 {[%emt 0:00:55][%cal Bf2f4,Bf4f5][%mdl 32]} h6 {[%emt 0:00:05]} 15. f5 {[%emt 0:28:33] White has an edge.} Bxe2 $1 {[%emt 0:00:46]} 16. Qxe2 {[%emt 0:00:35]} Re8 {[%emt 0:13:58]} 17. Qf2 {[%emt 0:01:04]} Qd5 {[%emt 0:12:18]} 18. Qh4 {[%emt 0:04:57][%cal Oc1h6] Bxh6! is the strong threat.} (18. Qg3 {seems wilder.} Kh7 19. Bf4 Nh5 20. f6+) 18... Ne5 {[%emt 0:16:02] [#]} (18... Kh7 $1 $11 {keeps the balance.}) 19. Bxh6 $1 $16 {[%emt 0:05:07][%mdl 512]} gxh6 {[%emt 0:01:56]} 20. Qxf6 {[%emt 0:01:36]} Nxd3 {[%emt 0:00:02]} (20... Kh7 $16) 21. Qxh6 $18 {[%emt 0:15:21]} (21. cxd3 $6 Re2 22. Rf3 (22. Qxh6 $2 Qxg2#) 22... Kh7 $16) 21... Qe5 {[%emt 0:04:53]} (21... Nxb2 22. f6) 22. Rf3 $40 {[%emt 0:11:08][%mdl 128] Inhibits Qe3+. White is out for blood.} Qg7 {[%emt 0:11:30]} (22... Nxb2 23. f6) 23. Qxg7+ {[%emt 0:01:43]} Kxg7 {[%emt 0:00:02]} 24. Rxd3 {[%emt 0:00:13][%mdl 4096] Endgame. KRR-KRR} Re2 {[%emt 0:04:24]} (24... Rac8 $142 25. Rc1 (25. Rxd4 Rxc2 26. b4 Kf6 $16) 25... Re4) 25. Rc1 {[%emt 0:01:49]} (25. Rxd4 Kf6 26. Rd6+ Kg7) 25... Rc8 {[%emt 0:03:48]} 26. Rxd4 {[%emt 0:01:49]} Rcxc2 {[%emt 0:01:40]} (26... Kf6 $142 27. Rf4 b5) 27. Rxc2 {[%emt 0:00:07]} Rxc2 {[%emt 0:00:04] KR-KR} 28. b4 {[%emt 0:00:36]} Rc7 {[%emt 0:02:26]} 29. Rd6 {[%emt 0:00:24]} b6 {[%emt 0:01:33]} 30. Rd3 {[%emt 0:12:11] Repels Rc3} Kf6 {[%emt 0:00:27]} 31. Rf3 {[%emt 0:00:36]} ({White should play} 31. g4 $18 {Strongly threatening Kg2.} Rc2 32. b5) 31... Kg5 $16 {[%emt 0:04:26]} 32. g4 {[%emt 0:10:19]} (32. Kh2 $142) 32... Rc2 {[%emt 0:05:40]} 33. Kf1 {[%emt 0:02:05]} f6 {[%emt 0:03:36]} 34. Ke1 {[%emt 0:00:07]} a5 {[%emt 0:05:49]} 35. Kd1 {[%emt 0:00:40]} Rh2 {[%emt 0:00:02]} 36. bxa5 {[%emt 0:01:33]} bxa5 {[%emt 0:00:01]} 37. Kc1 {[%emt 0:00:11]} Kh4 {[%emt 0:00:34]} 38. Rd3 {[%emt 0:01:07]} Kg5 {[%emt 0:02:03]} (38... Rxh3 39. Rxh3+ Kxg4 40. Rh7 Kxf5 41. Rh5+ Ke6 42. Rxa5 f5 43. Kd2) 39. Kb1 {[%emt 0:00:20] [#] Threatens to win with a4.} Kh4 {[%emt 0:00:17]} 40. Rc3 {[%emt 0:00:50]} Kg5 $2 {[%emt 0:00:10][%mdl 8192]} (40... Rxh3 41. Rxh3+ Kxg4 42. Rb3 Kxf5 43. Rb5+ Kg4 44. Rxa5 f5 45. Kc2) (40... Re2 $14) 41. Re3 $2 {[%emt 0:31:03]} (41. a4 $18) 41... Kh4 {[%emt 0:30:44]} 42. Kc1 {[%emt 0:00:48]} Kg5 {[%emt 0:00:21]} 43. Rb3 {[%emt 0:00:39]} Kh4 {[%emt 0:00:17]} 44. Kb1 {[%emt 0:00:00]} Kg5 {[%emt 0:00:00]} (44... Rxh3 45. Rxh3+ Kxh3 46. g5 fxg5 47. f6 Kg4 48. f7 Kf5 49. f8=Q+ (49. f8=R+ Kg4 $18) 49... Kg6 50. a4) 45. a4 {[%emt 0:00:00][%cal Ba3a4,Ba4a5,Ba5a6,Ba6a7][%mdl 32] aiming for Rc3.} Kh4 {[%emt 0:00:00]} 46. Rb5 {[%emt 0:00:00]} Kxh3 $2 {[%emt 0:00:00][%mdl 8192]} (46... Rh1+ $11 47. Kc2 Rh2+ 48. Kb3 Rxh3+ 49. Kc4 Rf3) 47. Rxa5 $18 {[%emt 0:00:00]} Kxg4 {[%emt 0:00:00]} 48. Rb5 {[%emt 0:00:00]} (48. Rc5 $142 Rh7 49. Kc2 Rh8 50. a5 Kf4 51. Kd3 Ra8 52. Kc4 Rb8 53. a6) 48... Kf4 {[%emt 0:00:00]} 49. a5 {[%emt 0:00:00]} Ke4 {[%emt 0:00:00]} 50. a6 {[%emt 0:00:00]} Rh8 {[%emt 0:00:00]} 51. a7 {[%emt 0:00:00]} Ra8 {[%emt 0:00:00]} 52. Ra5 {[%emt 0:00:00]} Kf4 {[%emt 0:00:00]} 53. Kc2 {[%emt 0:00:00]} Ke4 {[%emt 0:00:00]} 54. Kc3 {[%emt 0:00:00]} Kf4 {[%emt 0:00:00]} 55. Kd4 {[%emt 0:00:00]} Kg4 {[%emt 0:00:00]} 56. Kd5 {[%emt 0:04:49]} Kxf5 {[%emt 0:00:00]} 57. Kc6+ $2 {[%emt 0:00:07]} (57. Ra4 Rd8+ 58. Kc6 Ke6 59. a8=Q (59. a8=B f5 $11) 59... Rxa8 60. Rxa8 Ke5 61. Kc5 Kf5 62. Re8) 57... Ke4 $1 $14 {[%emt 0:00:00]} 58. Kb7 {[%emt 0:00:16]} (58. Ra4+ $5 Kd3 59. Kb7 Rxa7+ 60. Rxa7 $14 (60. Kxa7 Ke3 $16)) 58... Rxa7+ {[%emt 0:00:00]} 59. Rxa7 $11 {[%emt 0:00:07] White wants to mate with Kb6. KR-KP} (59. Kxa7 $5 f5 $8 60. Ra4+ Ke3 61. Kb8 $11) 59... f5 {[%emt 0:00:00]} 60. Kc6 {[%emt 0:00:50] Intending Kc5 and mate.} f4 {[%emt 0:00:00]} 61. Ra4+ {[%emt 0:02:17]} Ke5 {[%emt 0:00:00]} 62. Ra5+ $2 {[%emt 0:00:53]} (62. Kb5 f3 63. Kc5 f2 64. Ra1 Ke4 65. Rh1 Ke3 66. Kc4 Ke2 67. Kd5 (67. Rh2 Ke1 $11) 67... f1=Q 68. Rxf1 Kxf1) 62... Ke4 {[%emt 0:00:00]} 63. Ra4+ {[%emt 0:00:06]} Ke5 {[%emt 0:00:00]} 64. Kc5 $2 {[%emt 0:00:24]} (64. Kb5 {mates} f3 65. Rh4 f2 66. Rh1 Ke4 67. Rf1 Kf3 68. Rh1 Kg2 69. Rd1 f1=Q+ 70. Rxf1 Kxf1) 64... f3 {[%emt 0:00:00] The position is equal.} 65. Ra8 {[%emt 0:01:02] White threatens Re8+ and mate.} Ke4 $1 {[%emt 0:00:00]} 66. Re8+ {[%emt 0:00:36]} Kd3 {[%emt 0:00:00]} 67. Rd8+ {[%emt 0:00:28]} Ke2 {[%emt 0:00:00]} 68. Re8+ {[%emt 0:00:25]} Kd3 {[%emt 0:00:00]} 69. Rf8 {[%emt 0:00:08]} Ke2 {[%emt 0:00:00]} 70. Kd4 {[%emt 0:00:52]} f2 {[%emt 0:00:00]} 71. Re8+ {[%emt 0:00:09]} Kd2 {[%emt 0:00:00]} 72. Rf8 {[%emt 0:00:26]} Ke2 {[%emt 0:00:00]} 73. Ke4 {[%emt 0:00:41]} f1=Q {[%emt 0:00:00]} 74. Rxf1 {[%emt 0:00:03] Weighted Error Value: White=0.40/Black=0.46.  Loses game:     	---       	Black=2      Missed win:     	White=3     	---        Mistake:       	White=2     	Black=4      Inaccurate:     	White=6     	Black=3      OK:         	White=8     	Black=20     Best:        	White=3     	Black=7      Strong:       	---       	Black=2      Brilliant:      	White=1     	---} 1/2-1/2

[Event "55th Ladies GM 2024"]
[Site "Belgrade9"]
[Date "2024.03.03"]
[Round "2.3"]
[White "Djukic, Sandra"]
[Black "Mehmed, Elif"]
[Result "0-1"]
[ECO "D47"]
[WhiteElo "2127"]
[BlackElo "2194"]
[Annotator "RC"]
[PlyCount "62"]
[EventDate "2024.03.02"]
[EventType "tourn"]
[EventCountry "SRB"]
[SourceTitle "playchess.com"]
[Source "ChessBase"]
[SourceQuality "1"]
[TimeControl "40/5400+30:1800+30"]

1. d4 {[%emt 0:00:02]} d5 {[%emt 0:00:11]} 2. c4 {[%emt 0:00:05]} e6 {[%emt 0:00:06]} 3. Nc3 {[%emt 0:00:44]} c6 {[%emt 0:00:14]} 4. e3 {[%emt 0:03:15]} Nf6 {[%emt 0:00:37]} 5. Nf3 {[%emt 0:00:07]} Nbd7 {[%emt 0:00:12]} 6. Bd3 {[%emt 0:01:16]} dxc4 {[%emt 0:00:12]} 7. Bxc4 {[%emt 0:00:05]} b5 {[%emt 0:00:07]} 8. Bb3 {[%emt 0:00:49]} b4 {[%emt 0:03:10]} 9. Ne2 {[%emt 0:07:40]} Bb7 {[%emt 0:01:03]} 10. Nf4 {[%emt 0:06:22]} Bd6 {[%emt 0:04:51]} 11. O-O {[%emt 0:01:03]} O-O {[%emt 0:07:49]} 12. Qe2 {[%emt 0:14:36]} c5 {[%emt 0:08:35]} 13. Rd1 {[%emt 0:00:59]} Qe7 {[%emt 0:02:11]} 14. dxc5 {[%emt 0:16:51]} Nxc5 {[%emt 0:00:22]} 15. Bc4 {[%emt 0:01:17]} Rfd8 {[%emt 0:06:06]} 16. Nd4 {[%emt 0:03:21]} Rac8 {[%emt 0:08:32]} 17. a3 {[%emt 0:34:52]} bxa3 {[%emt 0:05:11]} 18. Rxa3 {[%emt 0:00:04]} Bb8 {[%emt 0:00:55]} 19. Rc3 {[%emt 0:05:54]} Nfe4 {[%emt 0:03:19]} 20. Rc2 {[%emt 0:00:33]} e5 {[%emt 0:00:54]} 21. Nf5 {[%emt 0:00:30]} Qf6 {[%emt 0:01:28]} 22. Rxd8+ {[%emt 0:00:28]} Rxd8 {[%emt 0:00:16]} 23. f3 {[%emt 0:00:15]} exf4 {[%emt 0:05:09]} 24. fxe4 {[%emt 0:00:05]} Bxe4 {[%emt 0:00:08]} 25. Nd4 {[%emt 0:01:13]} Bxc2 {[%emt 0:04:09]} 26. Nxc2 {[%emt 0:00:05]} fxe3 {[%emt 0:00:43]} 27. Nxe3 {[%emt 0:00:14]} Qe5 {[%emt 0:05:49]} 28. g3 {[%emt 0:01:11]} Ne6 {[%emt 0:00:32]} 29. Ng2 {[%emt 0:00:33]} Qxe2 {[%emt 0:01:14]} 30. Bxe2 {[%emt 0:00:05]} Rc8 {[%emt 0:00:11]} 31. Be3 {[%emt 0:01:26]} Rc2 {[%emt 0:00:12]} 0-1

[Event "55th Ladies GM 2024"]
[Site "Belgrade9"]
[Date "2024.03.03"]
[Round "2.4"]
[White "Doluhanova, Evgeniya"]
[Black "Vujovic, Vera"]
[Result "1-0"]
[ECO "A06"]
[WhiteElo "2261"]
[BlackElo "2175"]
[Annotator "TA"]
[PlyCount "125"]
[EventDate "2024.03.02"]
[EventType "tourn"]
[EventCountry "SRB"]
[SourceTitle "playchess.com"]
[Source "ChessBase"]
[SourceQuality "1"]
[TimeControl "40/5400+30:1800+30"]

{[%evp 14,125,-4,-46,-41,-56,-52,-63,-62,-56,-47,-145,-126,-144,-129,-124,-130,-131,-125,-156,-141,-149,-139,-192,-151,-167,-185,-140,-43,-161,0,-42,98,81,120,15,16,12,131,112,118,104,263,273,345,326,308,236,241,183,180,179,184,167,200,188,244,243,244,235,381,343,304,249,238,258,223,244,263,256,297,315,327,316,307,296,295,278,441,395,445,418,516,524,524,524,524,510,656,622,1610,1433,1537,1695,1726,987,1979,1735,29978,29979,29979,29980,29980,29981,29984,29985,29986,29986,29986,29986,29987,29988,29989,29990]} 1. Nf3 {[%emt 0:03:24]} d5 {[%emt 0:00:19]} 2. e3 {[%emt 0:01:15]} Nf6 {[%emt 0:00:50]} 3. c4 {[%emt 0:00:15]} c5 {[%emt 0:05:25]} 4. cxd5 {[%emt 0:03:29]} Nxd5 {[%emt 0:00:13]} 5. Bc4 {[%emt 0:00:09]} Nb6 {[%emt 0:06:39]} 6. Bb3 $146 {[%emt 0:01:48] A06: Réti Opening: 1 Nf3 d5.} ({Predecessor:} 6. Be2 Nc6 7. O-O e5 8. d4 e4 9. Nfd2 Bf5 10. Nb3 cxd4 11. Nxd4 Nxd4 12. exd4 Be7 13. Bb5+ Bd7 14. Bxd7+ Qxd7 15. Nc3 Rd8 {½-½ Chen,F (2373)-Mcnabb,M (2477) NZL-ch89 email 2022}) 6... c4 {[%emt 0:05:42]} 7. Bc2 {[%emt 0:02:43]} g6 {[%emt 0:17:18]} 8. Qe2 {[%emt 0:01:58]} Nc6 {[%emt 0:02:05]} 9. a3 {[%emt 0:01:16]} Bg7 {[%emt 0:10:08]} 10. Nc3 {[%emt 0:00:04]} O-O {[%emt 0:04:15]} 11. O-O {[%emt 0:00:15]} e5 {[%emt 0:07:09]} 12. b3 {[%emt 0:04:52]} (12. Rd1 $15) 12... cxb3 $17 {[%emt 0:02:05]} 13. Bxb3 {[%emt 0:00:07]} Bf5 {[%emt 0:01:03]} 14. Ne1 {[%emt 0:02:47]} e4 {[%emt 0:02:53]} 15. Rb1 {[%emt 0:06:43]} Rc8 {[%emt 0:12:20]} 16. Bc2 {[%emt 0:07:06]} Bxc3 {[%emt 0:02:32]} 17. dxc3 {[%emt 0:00:06]} Ne5 {[%emt 0:00:24]} 18. a4 {[%emt 0:03:53]} (18. f3 $17) 18... Nd3 {[%emt 0:09:29]} (18... Rxc3 19. Bb2 Nd5 20. Qb5 $11) 19. Ba3 {[%emt 0:02:54]} Re8 {[%emt 0:01:02]} 20. Bb3 {[%emt 0:12:13]} Rxc3 {[%emt 0:02:50]} (20... Be6 $17 {aiming for ...Bxb3.} 21. Bxe6 Rxe6) 21. Qa2 {[%emt 0:02:05]} (21. Qd2 $15 Nf4 22. Qb2 (22. Bxf7+ $2 Kxf7 23. Qb2 Nc4 $19)) 21... Qc7 $2 {[%emt 0:02:09]} (21... Be6 $1 $19 {[%cal Re6b3] ...Bxb3 would now be deadly.} 22. Bxe6 Rxe6) 22. a5 {[%emt 0:05:57]} Nc8 {[%emt 0:01:01] [#]} (22... Nc4 $15 {stays ahead.} 23. Bxc4 Qxc4 (23... Rxc4 24. Rxb7 Qxb7 25. Qxc4 $15) 24. Qxc4 Rxc4) 23. Nxd3 $1 $16 {[%emt 0:02:07]} Rxd3 {[%emt 0:02:44] [#]} 24. Bb4 {[%emt 0:15:23]} ({White should try} 24. Rbc1 $1 $16 {[%cal Rc1c7]} Qd7 25. Bc2) 24... Be6 $11 {[%emt 0:00:39]} 25. Qa4 {[%emt 0:01:36]} Bd7 {[%emt 0:01:00]} (25... Red8 $11) 26. Qa1 $16 {[%emt 0:00:57]} Bb5 {[%emt 0:00:31]} 27. Rfc1 {[%emt 0:01:49]} Qd7 $2 {[%emt 0:00:10]} (27... Qd8 $16 28. Bc3 Qe7) 28. Qf6 $18 {[%emt 0:01:08]} Rd6 {[%emt 0:00:54]} 29. Bxd6 {[%emt 0:02:40]} Nxd6 {[%emt 0:00:04]} 30. Bd5 {[%emt 0:02:07]} Bd3 {[%emt 0:00:49]} 31. Ra1 {[%emt 0:04:35]} Qe7 {[%emt 0:00:40]} 32. Qxe7 {[%emt 0:00:58]} Rxe7 {[%emt 0:00:04]} 33. h3 {[%emt 0:00:14]} Rd7 {[%emt 0:00:36]} 34. Bb3 {[%emt 0:00:05]} Bb5 {[%emt 0:00:48]} (34... Kf8 $142 35. Ba4 Re7) 35. Rc5 $18 {[%emt 0:00:38]} a6 {[%emt 0:00:25]} 36. Rd1 {[%emt 0:01:21]} Bd3 {[%emt 0:00:35]} (36... Kf8 $142 37. Rd4 Ke7) 37. f3 $18 {[%emt 0:03:01]} Kf8 {[%emt 0:00:30]} 38. Kf2 {[%emt 0:01:08]} Bb5 {[%emt 0:00:32]} 39. Rd4 {[%emt 0:00:54]} exf3 {[%emt 0:00:28]} 40. gxf3 {[%emt 0:00:17]} Bc6 {[%emt 0:00:34]} 41. Bd5 {[%emt 0:33:12]} Bb5 {[%emt 0:30:25]} 42. Bxb7 {[%emt 0:00:00]} Nxb7 {[%emt 0:00:00]} 43. Rxb5 $1 {[%emt 0:00:00]} axb5 {[%emt 0:00:00]} ({Don't go for} 43... Rxd4 $2 44. exd4 (44. Rxb7 Rd5 $17) 44... Nd6 45. Rb6 $18) 44. Rxd7 {[%emt 0:00:00]} Nxa5 {[%emt 0:00:00]} 45. Rd5 {[%emt 0:00:00]} Nc4 {[%emt 0:00:00]} (45... Nc6 $142 46. Rxb5 Kg7) 46. Rxb5 $18 {[%emt 0:00:00]} Nd6 {[%emt 0:00:00]} 47. Rb6 {[%emt 0:00:00]} Nf5 {[%emt 0:00:00]} 48. e4 {[%emt 0:00:00]} Ng7 {[%emt 0:00:00]} 49. f4 {[%emt 0:00:00]} Ke7 {[%emt 0:00:00]} 50. Ke3 {[%emt 0:00:00]} h6 {[%emt 0:00:00]} 51. Ra6 {[%emt 0:00:00]} Kd7 {[%emt 0:00:00]} 52. Kd4 {[%emt 0:00:00]} Nh5 {[%emt 0:00:00]} 53. Ke5 {[%emt 0:00:00]} Ke7 {[%emt 0:00:00]} 54. Ra7+ {[%emt 0:00:00]} Kf8 {[%emt 0:00:00]} 55. f5 {[%emt 0:00:00]} gxf5 {[%emt 0:00:00]} 56. exf5 {[%emt 0:02:48]} Kg7 {[%emt 0:00:30]} 57. Ra4 {[%emt 0:04:01]} Nf6 {[%emt 0:00:55]} 58. Rd4 {[%emt 0:02:05]} h5 {[%emt 0:02:36]} 59. Rd1 {[%emt 0:00:15]} Ne8 {[%emt 0:00:49]} 60. Rg1+ {[%emt 0:00:10]} Kh7 {[%emt 0:02:52]} 61. Rg2 {[%emt 0:00:38]} Kh6 {[%emt 0:01:02]} 62. Rg8 {[%emt 0:01:07]} Nc7 {[%emt 0:00:44]} 63. Kf6 {[%emt 0:00:25]} 1-0